[Event "Late-Titled-Tuesday-Blitz-October-24-2023"]
[Site "Chess.com"]
[Date "2023.10.24"]
[Round "9"]
[White "Eloist"]
[Black "GianmarcoVaR"]
[Result "0-1"]
[WhiteElo "2439"]
[BlackElo "2674"]
[TimeControl "180+1"]
[EndTime "15:43:34 PDT"]
[Termination "GianmarcoVaR won by resignation"]

1. e4 {[%clk 0:03:00.9]} 1... c5 {[%clk 0:02:58.5]} 2. Nf3 {[%clk 0:03:00.9]}
2... a6 {[%clk 0:02:53.2]} 3. g3 {[%clk 0:02:57.8]} 3... d6 {[%clk 0:02:51.3]}
4. Bg2 {[%clk 0:02:57.8]} 4... b5 {[%clk 0:02:45.8]} 5. O-O {[%clk 0:02:56.7]}
5... Bb7 {[%clk 0:02:46.7]} 6. Qe2 {[%clk 0:02:49.6]} 6... Nf6 {[%clk
0:02:43.8]} 7. d3 {[%clk 0:02:46.8]} 7... e6 {[%clk 0:02:41]} 8. Nh4 {[%clk
0:02:45.3]} 8... Be7 {[%clk 0:02:40]} 9. f4 {[%clk 0:02:45.3]} 9... Nc6 {[%clk
0:02:13.8]} 10. c3 {[%clk 0:02:44.4]} 10... b4 {[%clk 0:02:05.9]} 11. Nd2 {[%clk
0:02:35.5]} 11... a5 {[%clk 0:02:04.8]} 12. Nc4 {[%clk 0:02:32.1]} 12... O-O
{[%clk 0:02:03.6]} 13. f5 {[%clk 0:02:25]} 13... d5 {[%clk 0:02:00]} 14. exd5
{[%clk 0:02:12.1]} 14... exd5 {[%clk 0:01:59.3]} 15. Ne5 {[%clk 0:02:10.1]}
15... Nxe5 {[%clk 0:01:36.7]} 16. Qxe5 {[%clk 0:02:11]} 16... Re8 {[%clk
0:01:35.8]} 17. Qf4 {[%clk 0:01:53.4]} 17... Bd6 {[%clk 0:01:20.6]} 18. Qf3
{[%clk 0:01:48]} 18... h6 {[%clk 0:01:12.3]} 19. Bf4 {[%clk 0:01:40.9]} 19...
Re7 {[%clk 0:01:11.4]} 20. Rae1 {[%clk 0:01:38.3]} 20... d4 {[%clk 0:01:11.6]}
21. Qd1 {[%clk 0:01:30]} 21... Bxf4 {[%clk 0:01:04.8]} 22. Rxf4 {[%clk
0:01:25.9]} 22... bxc3 {[%clk 0:01:02.3]} 23. bxc3 {[%clk 0:01:23.2]} 23... Nd5
{[%clk 0:00:51.4]} 24. Rxe7 {[%clk 0:01:21.1]} 24... Qxe7 {[%clk 0:00:48.3]} 25.
Bxd5 {[%clk 0:01:10.3]} 25... Bxd5 {[%clk 0:00:47.3]} 26. c4 {[%clk 0:01:03.2]}
26... Bb7 {[%clk 0:00:32.2]} 27. f6 {[%clk 0:01:02.2]} 27... Qe3+ {[%clk
0:00:32.2]} 28. Rf2 {[%clk 0:01:00.2]} 28... g6 {[%clk 0:00:28.7]} 29. Ng2
{[%clk 0:00:54.7]} 29... Bxg2 {[%clk 0:00:14.9]} 30. Kxg2 {[%clk 0:00:53.5]}
30... Re8 {[%clk 0:00:14]} 31. Qf3 {[%clk 0:00:49]} 31... Qxf3+ {[%clk 0:00:11]}
32. Rxf3 {[%clk 0:00:35.8]} 32... a4 {[%clk 0:00:09.9]} 33. Kf2 {[%clk
0:00:32.9]} 33... a3 {[%clk 0:00:07.8]} 34. g4 {[%clk 0:00:27.3]} 34... g5
{[%clk 0:00:06.4]} 35. h4 {[%clk 0:00:25.9]} 35... Rb8 {[%clk 0:00:06.4]} 36.
hxg5 {[%clk 0:00:25.3]} 36... Rb2+ {[%clk 0:00:06.7]} 37. Kg3 {[%clk 0:00:24.3]}
37... Rxa2 {[%clk 0:00:07.4]} 38. Rf5 {[%clk 0:00:22.6]} 38... Ra1 {[%clk
0:00:07.3]} 39. Rxc5 {[%clk 0:00:19.6]} 39... a2 {[%clk 0:00:07.7]} 40. Rc8+
{[%clk 0:00:14]} 40... Kh7 {[%clk 0:00:07.6]} 41. Ra8 {[%clk 0:00:13.3]} 41...
Rg1+ {[%clk 0:00:07]} 42. Kf2 {[%clk 0:00:10.5]} 42... a1=Q {[%clk 0:00:07.9]}
43. Rxa1 {[%clk 0:00:09.3]} 43... Rxa1 {[%clk 0:00:08.8]} 0-1

[Event "Late-Titled-Tuesday-Blitz-October-24-2023"]
[Site "Chess.com"]
[Date "2023.10.24"]
[Round "9"]
[White "mbojan"]
[Black "tteshan"]
[Result "0-1"]
[WhiteElo "2751"]
[BlackElo "2538"]
[TimeControl "180+1"]
[EndTime "15:43:37 PDT"]
[Termination "tteshan won by resignation"]

1. e4 {[%clk 0:03:00.9]} 1... c5 {[%clk 0:03:00]} 2. Nf3 {[%clk 0:02:49.4]} 2...
Nc6 {[%clk 0:03:00]} 3. d4 {[%clk 0:02:47.6]} 3... cxd4 {[%clk 0:03:00.2]} 4.
Nxd4 {[%clk 0:02:48.5]} 4... g6 {[%clk 0:03:00.2]} 5. Nc3 {[%clk 0:02:48.5]}
5... Bg7 {[%clk 0:03:00.6]} 6. Be3 {[%clk 0:02:49.2]} 6... Nf6 {[%clk
0:03:01.2]} 7. Nxc6 {[%clk 0:02:49.8]} 7... bxc6 {[%clk 0:03:01]} 8. e5 {[%clk
0:02:50.1]} 8... Ng8 {[%clk 0:03:01.7]} 9. Bd4 {[%clk 0:02:50.7]} 9... f6 {[%clk
0:03:01.1]} 10. Qe2 {[%clk 0:02:47.3]} 10... fxe5 {[%clk 0:02:53.1]} 11. Bxe5
{[%clk 0:02:48.2]} 11... Nf6 {[%clk 0:02:50.2]} 12. O-O-O {[%clk 0:02:48.1]}
12... O-O {[%clk 0:02:44]} 13. Qe1 {[%clk 0:02:48.5]} 13... Qb6 {[%clk
0:02:23.8]} 14. Bc4+ {[%clk 0:02:24]} 14... d5 {[%clk 0:02:10.8]} 15. Bb3 {[%clk
0:02:15.3]} 15... Bb7 {[%clk 0:02:05.4]} 16. f3 {[%clk 0:02:13.9]} 16... a5
{[%clk 0:01:55.8]} 17. Na4 {[%clk 0:02:12.6]} 17... Qb5 {[%clk 0:01:39.9]} 18.
Qf1 {[%clk 0:02:05.2]} 18... Qxf1 {[%clk 0:01:32.8]} 19. Rhxf1 {[%clk
0:02:06.1]} 19... Nd7 {[%clk 0:01:32.6]} 20. Bxg7 {[%clk 0:02:05.2]} 20... Kxg7
{[%clk 0:01:33.5]} 21. Rfe1 {[%clk 0:02:05.1]} 21... e5 {[%clk 0:01:20.7]} 22.
Bc4 {[%clk 0:01:30.7]} 22... Rf4 {[%clk 0:01:03]} 23. b3 {[%clk 0:01:30.8]}
23... Ba6 {[%clk 0:00:52.3]} 24. Bxa6 {[%clk 0:01:30.4]} 24... Rxa6 {[%clk
0:00:53.2]} 25. c4 {[%clk 0:01:27.3]} 25... d4 {[%clk 0:00:52.4]} 26. Nb2 {[%clk
0:01:27.7]} 26... Ra8 {[%clk 0:00:39.3]} 27. Nd3 {[%clk 0:01:28]} 27... Rf5
{[%clk 0:00:39.6]} 28. Re4 {[%clk 0:01:27]} 28... Kf6 {[%clk 0:00:30.1]} 29.
Rde1 {[%clk 0:01:26.7]} 29... h5 {[%clk 0:00:28.9]} 30. f4 {[%clk 0:01:06.7]}
30... exf4 {[%clk 0:00:17.6]} 31. Re6+ {[%clk 0:01:07.6]} 31... Kg5 {[%clk
0:00:15.8]} 32. h4+ {[%clk 0:01:01.8]} 32... Kxh4 {[%clk 0:00:11.1]} 33. Rxg6
{[%clk 0:01:02.2]} 33... Rg5 {[%clk 0:00:09]} 34. Rh1+ {[%clk 0:00:43.2]} 34...
Kg4 {[%clk 0:00:09.2]} 35. Rf6 {[%clk 0:00:43.9]} 35... Nxf6 {[%clk 0:00:05.8]}
36. Rf1 {[%clk 0:00:36.7]} 36... Rf5 {[%clk 0:00:05.2]} 37. Rf3 {[%clk
0:00:36.7]} 37... Re8 {[%clk 0:00:04.2]} 38. Nf2+ {[%clk 0:00:35.4]} 38... Kg5
{[%clk 0:00:04.5]} 39. Nh3+ {[%clk 0:00:36.1]} 39... Kh6 {[%clk 0:00:04.4]} 40.
Nxf4 {[%clk 0:00:35.7]} 40... Re4 {[%clk 0:00:04.1]} 41. g3 {[%clk 0:00:36.2]}
41... Ng4 {[%clk 0:00:04.4]} 42. Rd3 {[%clk 0:00:36]} 42... c5 {[%clk
0:00:03.7]} 43. a3 {[%clk 0:00:35.3]} 43... Ne3 {[%clk 0:00:04.2]} 44. b4 {[%clk
0:00:33.7]} 44... axb4 {[%clk 0:00:05.1]} 45. axb4 {[%clk 0:00:34.3]} 45... cxb4
{[%clk 0:00:05.3]} 46. Kb2 {[%clk 0:00:31.7]} 46... Nxc4+ {[%clk 0:00:05.7]} 47.
Kb3 {[%clk 0:00:32]} 47... Ne5 {[%clk 0:00:06]} 48. Rd1 {[%clk 0:00:31.5]} 48...
Re3+ {[%clk 0:00:06.2]} 49. Kxb4 {[%clk 0:00:31.7]} 49... Rxg3 {[%clk
0:00:06.3]} 50. Ne6 {[%clk 0:00:29.4]} 50... Rf6 {[%clk 0:00:05.9]} 51. Nxd4
{[%clk 0:00:27.5]} 51... Nc6+ {[%clk 0:00:06.3]} 0-1

[Event "Late-Titled-Tuesday-Blitz-October-24-2023"]
[Site "Chess.com"]
[Date "2023.10.24"]
[Round "9"]
[White "sergiochess83"]
[Black "Grischuk"]
[Result "1/2-1/2"]
[WhiteElo "2879"]
[BlackElo "2986"]
[TimeControl "180+1"]
[EndTime "15:43:39 PDT"]
[Termination "Game drawn by agreement"]

1. e4 {[%clk 0:02:52.8]} 1... c5 {[%clk 0:02:58.4]} 2. Nf3 {[%clk 0:02:52.2]}
2... d6 {[%clk 0:02:58]} 3. d4 {[%clk 0:02:51.3]} 3... cxd4 {[%clk 0:02:58.9]}
4. Nxd4 {[%clk 0:02:51.9]} 4... Nf6 {[%clk 0:02:59.2]} 5. Nc3 {[%clk 0:02:51.7]}
5... a6 {[%clk 0:02:59.8]} 6. Bd3 {[%clk 0:02:51.6]} 6... g6 {[%clk 0:02:57.7]}
7. f3 {[%clk 0:02:50]} 7... Bg7 {[%clk 0:02:57.7]} 8. Be3 {[%clk 0:02:49.4]}
8... Nbd7 {[%clk 0:02:57.3]} 9. Qd2 {[%clk 0:02:44.7]} 9... Ne5 {[%clk
0:02:32.6]} 10. O-O-O {[%clk 0:02:25]} 10... d5 {[%clk 0:02:25.4]} 11. Bh6
{[%clk 0:01:55.5]} 11... Nxd3+ {[%clk 0:02:23.3]} 12. cxd3 {[%clk 0:01:50.6]}
12... Bxh6 {[%clk 0:02:23.3]} 13. Qxh6 {[%clk 0:01:49.2]} 13... e5 {[%clk
0:02:24.2]} 14. Nb3 {[%clk 0:01:16.8]} 14... d4 {[%clk 0:02:21.7]} 15. Nd5
{[%clk 0:01:16.5]} 15... Nxd5 {[%clk 0:02:09.4]} 16. exd5 {[%clk 0:01:17.4]}
16... Qxd5 {[%clk 0:01:54.9]} 17. Qg7 {[%clk 0:01:15.2]} 17... Rf8 {[%clk
0:01:54.5]} 18. Rhe1 {[%clk 0:01:13.1]} 18... f6 {[%clk 0:01:54.7]} 19. f4
{[%clk 0:01:04.7]} 19... Bg4 {[%clk 0:01:37.2]} 20. fxe5 {[%clk 0:00:54.3]}
20... O-O-O {[%clk 0:01:36.4]} 21. Rd2 {[%clk 0:00:51.7]} 21... Rf7 {[%clk
0:01:32.9]} 22. Qh6 {[%clk 0:00:47.2]} 22... fxe5 {[%clk 0:01:18.9]} 23. Rc2+
{[%clk 0:00:46.5]} 23... Kb8 {[%clk 0:01:11.3]} 24. Qg5 {[%clk 0:00:33.8]} 24...
Bf5 {[%clk 0:01:01]} 25. Rxe5 {[%clk 0:00:33.7]} 25... Qd6 {[%clk 0:00:48.1]}
26. Qg3 {[%clk 0:00:33.1]} 26... Bxd3 {[%clk 0:00:40.6]} 27. Rd5 {[%clk
0:00:33.3]} 27... Qxg3 {[%clk 0:00:27.4]} 28. Rxd8+ {[%clk 0:00:33.1]} 28... Ka7
{[%clk 0:00:27.3]} 29. hxg3 {[%clk 0:00:33.7]} 29... Rf1+ {[%clk 0:00:25.4]} 30.
Kd2 {[%clk 0:00:33.3]} 30... Bxc2 {[%clk 0:00:26.3]} 31. Kxc2 {[%clk 0:00:33.6]}
31... Rf2+ {[%clk 0:00:26.6]} 32. Nd2 {[%clk 0:00:32.1]} 32... Rxg2 {[%clk
0:00:26.8]} 33. Rxd4 {[%clk 0:00:24.3]} 33... Rxg3 {[%clk 0:00:26.8]} 34. Rd7
{[%clk 0:00:23]} 34... h5 {[%clk 0:00:25.8]} 35. Rh7 {[%clk 0:00:23]} 35... Rg4
{[%clk 0:00:22.2]} 36. Nf3 {[%clk 0:00:20.2]} 36... Rg2+ {[%clk 0:00:19.9]} 37.
Nd2 {[%clk 0:00:17.8]} 37... Rg4 {[%clk 0:00:19]} 38. Kd3 {[%clk 0:00:11.2]}
38... h4 {[%clk 0:00:17.3]} 39. Ne4 {[%clk 0:00:10.4]} 39... g5 {[%clk
0:00:12.3]} 40. Rh5 {[%clk 0:00:09.4]} 40... Rg2 {[%clk 0:00:10.2]} 41. Kc3
{[%clk 0:00:06.8]} 41... Re2 {[%clk 0:00:10.2]} 42. Nxg5 {[%clk 0:00:04.8]}
42... Re5 {[%clk 0:00:10.2]} 43. Rxh4 {[%clk 0:00:03.8]} 43... Rxg5 {[%clk
0:00:10.4]} 1/2-1/2

[Event "Late-Titled-Tuesday-Blitz-October-24-2023"]
[Site "Chess.com"]
[Date "2023.10.24"]
[Round "9"]
[White "Chessdreamer2020"]
[Black "MaxLeto"]
[Result "1-0"]
[WhiteElo "2499"]
[BlackElo "2553"]
[TimeControl "180+1"]
[EndTime "15:43:41 PDT"]
[Termination "Chessdreamer2020 won on time"]

1. e4 {[%clk 0:02:58.4]} 1... c5 {[%clk 0:03:00]} 2. Nf3 {[%clk 0:02:57.1]} 2...
d6 {[%clk 0:03:00.5]} 3. Bb5+ {[%clk 0:02:55.9]} 3... Nd7 {[%clk 0:03:00.4]} 4.
a4 {[%clk 0:02:55.2]} 4... a6 {[%clk 0:02:59.9]} 5. Be2 {[%clk 0:02:55]} 5... b6
{[%clk 0:02:59.1]} 6. d4 {[%clk 0:02:54.1]} 6... cxd4 {[%clk 0:02:58.9]} 7. Qxd4
{[%clk 0:02:54.8]} 7... Bb7 {[%clk 0:02:59.5]} 8. Nc3 {[%clk 0:02:55.3]} 8... e6
{[%clk 0:02:54.5]} 9. O-O {[%clk 0:02:55.1]} 9... Ne7 {[%clk 0:02:52.2]} 10. Rd1
{[%clk 0:02:42.3]} 10... Nc6 {[%clk 0:02:48]} 11. Qe3 {[%clk 0:02:36.5]} 11...
Be7 {[%clk 0:02:40.7]} 12. Nd2 {[%clk 0:02:35.3]} 12... Qc7 {[%clk 0:02:31.1]}
13. Nc4 {[%clk 0:02:33.6]} 13... Nce5 {[%clk 0:02:22.8]} 14. Nxe5 {[%clk
0:02:29.2]} 14... dxe5 {[%clk 0:02:17.8]} 15. Qg3 {[%clk 0:02:16.6]} 15... O-O
{[%clk 0:02:05.4]} 16. Bh6 {[%clk 0:02:07.1]} 16... Bf6 {[%clk 0:02:05.7]} 17.
Rd3 {[%clk 0:01:53.8]} 17... Kh8 {[%clk 0:01:56.7]} 18. Bg5 {[%clk 0:01:52.8]}
18... Nc5 {[%clk 0:01:36.3]} 19. Bxf6 {[%clk 0:01:48.4]} 19... gxf6 {[%clk
0:01:37.2]} 20. Qh4 {[%clk 0:01:37.6]} 20... Nxd3 {[%clk 0:01:17.7]} 21. Qxf6+
{[%clk 0:01:37.2]} 21... Kg8 {[%clk 0:01:18.4]} 22. Qg5+ {[%clk 0:01:37.5]}
22... Kh8 {[%clk 0:01:18.3]} 23. Qf6+ {[%clk 0:01:37.6]} 23... Kg8 {[%clk
0:01:18.8]} 24. Bxd3 {[%clk 0:01:29.9]} 24... Rfd8 {[%clk 0:00:31.3]} 25. Re1
{[%clk 0:01:28.8]} 25... Kf8 {[%clk 0:00:25.9]} 26. Re3 {[%clk 0:01:28.8]} 26...
Ke8 {[%clk 0:00:23.9]} 27. Rg3 {[%clk 0:01:16.4]} 27... Qe7 {[%clk 0:00:14.6]}
28. Qxe5 {[%clk 0:01:05.5]} 28... Kd7 {[%clk 0:00:14.6]} 29. Nb5 {[%clk
0:00:41.1]} 29... Rac8 {[%clk 0:00:06]} 30. Qd4+ {[%clk 0:00:36.1]} 30... Kc6
{[%clk 0:00:05.6]} 31. Na7+ {[%clk 0:00:27]} 31... Kc7 {[%clk 0:00:04]} 32. Nxc8
{[%clk 0:00:23.6]} 32... Bxc8 {[%clk 0:00:03.3]} 33. Qe5+ {[%clk 0:00:22.2]}
33... Kb7 {[%clk 0:00:03.5]} 34. a5 {[%clk 0:00:21]} 34... bxa5 {[%clk
0:00:03.3]} 35. Rg7 {[%clk 0:00:20.4]} 35... a4 {[%clk 0:00:02.6]} 36. Qa5
{[%clk 0:00:20.2]} 36... Rd7 {[%clk 0:00:02.2]} 37. Qxa4 {[%clk 0:00:19.6]}
37... h5 {[%clk 0:00:02.1]} 38. h3 {[%clk 0:00:19.3]} 38... Qc5 {[%clk 0:00:02]}
39. Qb3+ {[%clk 0:00:18]} 39... Ka7 {[%clk 0:00:01.9]} 40. Rg8 {[%clk
0:00:18.2]} 40... Bb7 {[%clk 0:00:01.8]} 41. Qa4 {[%clk 0:00:16.6]} 41... Rc7
{[%clk 0:00:01.7]} 42. Rd8 {[%clk 0:00:15.7]} 42... f5 {[%clk 0:00:02]} 43. b4
{[%clk 0:00:14.3]} 1-0

[Event "Late-Titled-Tuesday-Blitz-October-24-2023"]
[Site "Chess.com"]
[Date "2023.10.24"]
[Round "9"]
[White "IMSlavin"]
[Black "giomar27"]
[Result "0-1"]
[WhiteElo "2231"]
[BlackElo "2376"]
[TimeControl "180+1"]
[EndTime "15:43:46 PDT"]
[Termination "giomar27 won by resignation"]

1. e4 {[%clk 0:02:59.4]} 1... e5 {[%clk 0:02:58.1]} 2. Nf3 {[%clk 0:02:58.9]}
2... Nc6 {[%clk 0:02:58.7]} 3. c3 {[%clk 0:02:59.2]} 3... d5 {[%clk 0:02:58.1]}
4. Qa4 {[%clk 0:02:58.3]} 4... Bd7 {[%clk 0:02:56.9]} 5. exd5 {[%clk 0:02:57.1]}
5... Nd4 {[%clk 0:02:57]} 6. Qd1 {[%clk 0:02:56.6]} 6... Nxf3+ {[%clk
0:02:57.5]} 7. Qxf3 {[%clk 0:02:56.5]} 7... Nf6 {[%clk 0:02:58.1]} 8. c4 {[%clk
0:02:56.5]} 8... Bd6 {[%clk 0:02:47]} 9. h3 {[%clk 0:02:54.2]} 9... e4 {[%clk
0:02:46.1]} 10. Qb3 {[%clk 0:02:54]} 10... O-O {[%clk 0:02:45.6]} 11. Qxb7
{[%clk 0:02:51.8]} 11... Rb8 {[%clk 0:02:26.4]} 12. Qxa7 {[%clk 0:02:50.3]}
12... c6 {[%clk 0:02:23.4]} 13. Nc3 {[%clk 0:02:46]} 13... cxd5 {[%clk
0:02:02.1]} 14. cxd5 {[%clk 0:02:40]} 14... Qe7 {[%clk 0:01:59.8]} 15. Be2
{[%clk 0:02:35.1]} 15... Bc5 {[%clk 0:01:59.8]} 16. Qc7 {[%clk 0:02:26.3]} 16...
Bd6 {[%clk 0:01:58.4]} 17. Qa7 {[%clk 0:02:20]} 17... Rfc8 {[%clk 0:01:07.9]}
18. Qe3 {[%clk 0:02:18.2]} 18... Bc5 {[%clk 0:01:08]} 19. Qg3 {[%clk 0:02:17.3]}
19... Bd6 {[%clk 0:01:08.3]} 20. Qh4 {[%clk 0:02:16.3]} 20... Qe5 {[%clk
0:01:05.4]} 21. Bg4 {[%clk 0:01:57.1]} 21... Rb4 {[%clk 0:00:57.5]} 22. Bxd7
{[%clk 0:01:54.9]} 22... Nxd7 {[%clk 0:00:56.9]} 23. Qg4 {[%clk 0:01:32.1]}
23... f5 {[%clk 0:00:49.2]} 24. Qe2 {[%clk 0:01:27.3]} 24... Nc5 {[%clk
0:00:44.4]} 25. Kf1 {[%clk 0:01:10.6]} 25... Nd3 {[%clk 0:00:44.2]} 26. a3
{[%clk 0:01:09.6]} 26... Rb3 {[%clk 0:00:40.3]} 27. a4 {[%clk 0:01:06.1]} 27...
Bc5 {[%clk 0:00:36]} 28. Nd1 {[%clk 0:01:03.9]} 28... Ba7 {[%clk 0:00:31.6]} 29.
Ne3 {[%clk 0:01:00.3]} 29... f4 {[%clk 0:00:26.4]} 30. Ng4 {[%clk 0:00:57.3]}
30... Qxd5 {[%clk 0:00:22.9]} 31. Qd1 {[%clk 0:00:44.7]} 31... h5 {[%clk
0:00:21.2]} 32. Nh2 {[%clk 0:00:41.7]} 32... Kh8 {[%clk 0:00:16.7]} 33. Kg1
{[%clk 0:00:41.1]} 33... Qc5 {[%clk 0:00:16]} 34. Qf1 {[%clk 0:00:40]} 34...
Qxc1 {[%clk 0:00:10.4]} 35. Rxc1 {[%clk 0:00:39.7]} 35... Rxc1 {[%clk
0:00:11.1]} 36. Qxc1 {[%clk 0:00:39.9]} 36... Nxc1 {[%clk 0:00:11.7]} 37. g4
{[%clk 0:00:37.6]} 37... Nd3 {[%clk 0:00:08.8]} 38. Kg2 {[%clk 0:00:37.6]} 38...
Rxb2 {[%clk 0:00:09.1]} 39. Ra1 {[%clk 0:00:36.3]} 39... Rxd2 {[%clk 0:00:08.5]}
40. gxh5 {[%clk 0:00:36.6]} 40... Rxf2+ {[%clk 0:00:09]} 41. Kh1 {[%clk
0:00:36.9]} 41... e3 {[%clk 0:00:09.1]} 42. Ng4 {[%clk 0:00:37.1]} 42... Rb2
{[%clk 0:00:05.7]} 43. Rd1 {[%clk 0:00:36.9]} 43... Nf2+ {[%clk 0:00:03.5]} 44.
Nxf2 {[%clk 0:00:37]} 44... Rxf2 {[%clk 0:00:04.4]} 45. Rd7 {[%clk 0:00:36]}
45... e2 {[%clk 0:00:04.7]} 46. Re7 {[%clk 0:00:34.5]} 46... Rf1+ {[%clk
0:00:05.2]} 47. Kg2 {[%clk 0:00:34.9]} 47... e1=Q {[%clk 0:00:06.1]} 48. Rxe1
{[%clk 0:00:33.7]} 48... Rxe1 {[%clk 0:00:07]} 49. Kf3 {[%clk 0:00:34]} 49...
Ra1 {[%clk 0:00:07.9]} 50. Kxf4 {[%clk 0:00:34.3]} 50... Rxa4+ {[%clk
0:00:08.8]} 51. Kg5 {[%clk 0:00:34.7]} 51... Ra5+ {[%clk 0:00:09.7]} 52. Kg6
{[%clk 0:00:34.7]} 52... Ra6+ {[%clk 0:00:09.6]} 53. Kg5 {[%clk 0:00:34.5]}
53... Kh7 {[%clk 0:00:09.8]} 54. h4 {[%clk 0:00:34.6]} 54... Ra5+ {[%clk
0:00:10.7]} 55. Kg4 {[%clk 0:00:34.9]} 55... Kh6 {[%clk 0:00:11.6]} 0-1

[Event "Late-Titled-Tuesday-Blitz-October-24-2023"]
[Site "Chess.com"]
[Date "2023.10.24"]
[Round "9"]
[White "RCone"]
[Black "GMJustin"]
[Result "0-1"]
[WhiteElo "2394"]
[BlackElo "2274"]
[TimeControl "180+1"]
[EndTime "15:43:49 PDT"]
[Termination "GMJustin won by checkmate"]

1. e4 {[%clk 0:03:00.9]} 1... c5 {[%clk 0:02:54]} 2. Nc3 {[%clk 0:02:55.2]} 2...
Nc6 {[%clk 0:02:52]} 3. Bb5 {[%clk 0:02:54.5]} 3... Nd4 {[%clk 0:02:44.7]} 4.
Nf3 {[%clk 0:02:52.1]} 4... e6 {[%clk 0:02:24.5]} 5. O-O {[%clk 0:02:23.1]} 5...
Nxb5 {[%clk 0:02:23]} 6. Nxb5 {[%clk 0:02:20.3]} 6... a6 {[%clk 0:02:22.9]} 7.
Nc3 {[%clk 0:02:20]} 7... b5 {[%clk 0:02:21]} 8. d4 {[%clk 0:02:19.3]} 8... cxd4
{[%clk 0:02:19.3]} 9. Qxd4 {[%clk 0:02:17.7]} 9... Bb7 {[%clk 0:02:16.3]} 10.
Bf4 {[%clk 0:01:55.5]} 10... d6 {[%clk 0:02:12.4]} 11. Rfd1 {[%clk 0:01:53.9]}
11... e5 {[%clk 0:01:48.1]} 12. Nxe5 {[%clk 0:01:04.8]} 12... dxe5 {[%clk
0:01:47.4]} 13. Qxe5+ {[%clk 0:01:05.7]} 13... Qe7 {[%clk 0:01:47.2]} 14. Qf5
{[%clk 0:00:44]} 14... g6 {[%clk 0:01:31]} 15. Qg4 {[%clk 0:00:42.8]} 15... Nf6
{[%clk 0:01:28.5]} 16. Qf3 {[%clk 0:00:33.8]} 16... Bg7 {[%clk 0:01:13.1]} 17.
Bd6 {[%clk 0:00:31.7]} 17... Qe6 {[%clk 0:01:12.8]} 18. Qe3 {[%clk 0:00:18]}
18... Nd7 {[%clk 0:00:52.1]} 19. f4 {[%clk 0:00:08.8]} 19... f5 {[%clk
0:00:31.6]} 20. e5 {[%clk 0:00:08.6]} 20... Kf7 {[%clk 0:00:31.2]} 21. a3 {[%clk
0:00:07.9]} 21... Rhe8 {[%clk 0:00:26.2]} 22. Qf2 {[%clk 0:00:06]} 22... Kg8
{[%clk 0:00:25]} 23. Ne2 {[%clk 0:00:05.5]} 23... Qc4 {[%clk 0:00:22]} 24. c3
{[%clk 0:00:05.4]} 24... Rad8 {[%clk 0:00:17.1]} 25. Nd4 {[%clk 0:00:05]} 25...
Be4 {[%clk 0:00:16.8]} 26. Rd2 {[%clk 0:00:04.8]} 26... Nc5 {[%clk 0:00:14.3]}
27. Re1 {[%clk 0:00:03.7]} 27... Nd3 {[%clk 0:00:13.7]} 28. Qe3 {[%clk
0:00:01.7]} 28... Nxe1 {[%clk 0:00:12.5]} 29. Qxe1 {[%clk 0:00:02.6]} 29... Qc8
{[%clk 0:00:09.9]} 30. Qe3 {[%clk 0:00:02.4]} 30... Bf8 {[%clk 0:00:08.6]} 31.
h3 {[%clk 0:00:01.6]} 31... Bxd6 {[%clk 0:00:08.3]} 32. exd6 {[%clk 0:00:02]}
32... Rxd6 {[%clk 0:00:08.3]} 33. g4 {[%clk 0:00:02.2]} 33... Qc5 {[%clk
0:00:07.8]} 34. gxf5 {[%clk 0:00:02.2]} 34... gxf5 {[%clk 0:00:05.5]} 35. Kh2
{[%clk 0:00:02.6]} 35... Rg6 {[%clk 0:00:04.7]} 36. Qf2 {[%clk 0:00:02.4]} 36...
Qf8 {[%clk 0:00:03.9]} 37. Qh4 {[%clk 0:00:02.5]} 37... Re7 {[%clk 0:00:03.8]}
38. Rf2 {[%clk 0:00:02.2]} 38... Reg7 {[%clk 0:00:03.8]} 39. Qh5 {[%clk
0:00:01.7]} 39... Rg2+ {[%clk 0:00:03.8]} 40. Rxg2 {[%clk 0:00:01.9]} 40...
Rxg2+ {[%clk 0:00:04]} 41. Kh1 {[%clk 0:00:02.7]} 41... Rg5+ {[%clk 0:00:04.5]}
42. Kh2 {[%clk 0:00:03]} 42... Rxh5 {[%clk 0:00:04.9]} 43. h4 {[%clk 0:00:03.2]}
43... Qd6 {[%clk 0:00:05.2]} 44. Kg3 {[%clk 0:00:03.3]} 44... Rxh4 {[%clk
0:00:05.6]} 45. Kxh4 {[%clk 0:00:03.1]} 45... Qxf4+ {[%clk 0:00:05.9]} 46. Kh3
{[%clk 0:00:02.9]} 46... Qg4+ {[%clk 0:00:06.3]} 47. Kh2 {[%clk 0:00:03.1]}
47... Qg2# {[%clk 0:00:06.9]} 0-1